[Event "Sardinia World Festival-A 2024"]
[Site "Orosei"]
[Date "2024.04.30"]
[Round "5.4"]
[White "Chigaev, Maksim"]
[Black "Sonis, Francesco"]
[Result "1-0"]
[ECO "E15"]
[WhiteElo "2621"]
[BlackElo "2562"]
[Annotator "RC"]
[PlyCount "117"]
[EventDate "2024.04.26"]
[EventType "swiss"]
[EventCountry "ITA"]
[SourceTitle "playchess.com"]
[Source "ChessBase"]
[SourceQuality "1"]
[TimeControl "40/5400+30:1800+30"]

1. d4 {[%emt 0:00:50]} Nf6 {[%emt 0:00:19]} 2. c4 {[%emt 0:00:08]} e6 {[%emt 0:00:10]} 3. g3 {[%emt 0:00:14]} d5 {[%emt 0:00:22]} 4. Bg2 {[%emt 0:00:07]} Bb4+ {[%emt 0:00:08]} 5. Nd2 {[%emt 0:00:09]} O-O {[%emt 0:00:23]} 6. Ngf3 {[%emt 0:00:07]} b6 {[%emt 0:01:51]} 7. O-O {[%emt 0:00:15]} Bb7 {[%emt 0:00:04]} 8. Ne5 {[%emt 0:00:21]} Be7 {[%emt 0:03:15]} 9. b3 {[%emt 0:02:13]} a5 {[%emt 0:02:43]} 10. Qc2 {[%emt 0:17:19]} c5 {[%emt 0:03:19]} 11. Bb2 {[%emt 0:04:46]} Qc7 {[%emt 0:01:21]} 12. cxd5 {[%emt 0:09:11]} exd5 {[%emt 0:02:09]} 13. Rac1 {[%emt 0:05:29]} Na6 {[%emt 0:05:41]} 14. Qb1 {[%emt 0:07:02]} Bd6 {[%emt 0:09:26]} 15. e4 {[%emt 0:09:20]} Rfe8 {[%emt 0:21:31]} 16. exd5 {[%emt 0:01:17]} Nb4 {[%emt 0:02:23]} 17. Ndc4 {[%emt 0:13:35]} Bxd5 {[%emt 0:02:15]} 18. Bxd5 {[%emt 0:00:39]} Nbxd5 {[%emt 0:00:18]} 19. Nxd6 {[%emt 0:01:08]} Qxd6 {[%emt 0:00:03]} 20. dxc5 {[%emt 0:01:22]} bxc5 {[%emt 0:00:03]} 21. Qf5 {[%emt 0:01:23]} a4 {[%emt 0:06:56]} 22. Rfd1 {[%emt 0:02:22]} axb3 {[%emt 0:03:00]} 23. axb3 {[%emt 0:00:03]} Rad8 {[%emt 0:06:00]} 24. Ng4 {[%emt 0:04:50]} Qe6 {[%emt 0:06:57]} 25. Qxe6 {[%emt 0:03:05]} fxe6 {[%emt 0:00:17]} 26. Bxf6 {[%emt 0:00:12]} Nxf6 {[%emt 0:00:25]} 27. Rxd8 {[%emt 0:00:10]} Rxd8 {[%emt 0:00:04]} 28. Nxf6+ {[%emt 0:00:05]} gxf6 {[%emt 0:00:02]} 29. Rxc5 {[%emt 0:00:07]} Rd1+ {[%emt 0:00:53]} 30. Kg2 {[%emt 0:00:07]} Kf7 {[%emt 0:00:02]} 31. b4 {[%emt 0:01:47]} Rb1 {[%emt 0:00:47]} 32. Rc7+ {[%emt 0:00:18]} Kg6 {[%emt 0:00:04]} 33. Rb7 {[%emt 0:00:05]} Rb3 {[%emt 0:00:41]} 34. b5 {[%emt 0:00:36]} e5 {[%emt 0:03:51]} 35. b6 {[%emt 0:00:42]} e4 {[%emt 0:07:44]} 36. Rb8 {[%emt 0:00:30]} Kg7 {[%emt 0:00:05]} 37. b7 {[%emt 0:00:16]} Rb1 {[%emt 0:01:07]} 38. g4 {[%emt 0:09:31]} h5 {[%emt 0:00:43]} 39. h3 {[%emt 0:00:59]} h4 {[%emt 0:00:11]} 40. Kh2 {[%emt 0:00:05]} Kh7 {[%emt 0:02:11]} 41. Rf8 {[%emt 0:30:10]} Rxb7 {[%emt 0:30:05]} 42. Rxf6 {[%emt 0:00:06]} Rb5 {[%emt 0:04:35]} 43. Re6 {[%emt 0:02:31]} Rb4 {[%emt 0:00:21]} 44. Kg2 {[%emt 0:01:15]} Kg7 {[%emt 0:00:05]} 45. Kf1 {[%emt 0:01:37]} Rb1+ {[%emt 0:00:38]} 46. Ke2 {[%emt 0:01:05]} Rb3 {[%emt 0:00:04]} 47. Rxe4 {[%emt 0:00:33]} Rxh3 {[%emt 0:00:04]} 48. Re3 {[%emt 0:00:00]} Rh1 {[%emt 0:00:00]} 49. Kf3 {[%emt 0:00:00]} Kf6 {[%emt 0:00:00]} 50. Kf4 {[%emt 0:00:00]} Rh2 {[%emt 0:00:00]} 51. g5+ {[%emt 0:00:00]} Kf7 {[%emt 0:00:00]} 52. f3 {[%emt 0:00:00]} Rg2 {[%emt 0:00:00]} 53. Rb3 {[%emt 0:00:00]} h3 {[%emt 0:00:00]} 54. Rb7+ {[%emt 0:00:00]} Ke6 {[%emt 0:00:00]} 55. Rb6+ {[%emt 0:00:00]} Kf7 {[%emt 0:00:00]} 56. Rh6 {[%emt 0:00:00]} h2 {[%emt 0:00:00]} 57. Kf5 {[%emt 0:00:00]} Kg8 {[%emt 0:00:00]} 58. f4 {[%emt 0:00:00]} Kg7 {[%emt 0:00:00]} 59. Ke4 {[%emt 0:00:00]} 1-0

[Event "Sardinia World Festival-A 2024"]
[Site "Orosei"]
[Date "2024.04.30"]
[Round "5.5"]
[White "Velten, Paul"]
[Black "Moussard, Jules"]
[Result "1/2-1/2"]
[ECO "E12"]
[WhiteElo "2481"]
[BlackElo "2610"]
[Annotator "TA"]
[PlyCount "81"]
[EventDate "2024.04.26"]
[EventType "swiss"]
[EventCountry "ITA"]
[SourceTitle "playchess.com"]
[Source "ChessBase"]
[SourceQuality "1"]
[TimeControl "40/5400+30:1800+30"]

{[%evp 9,81,0,0,0,12,15,8,14,21,6,11,11,12,0,1,7,15,15,19,0,6,0,0,0,33,41,66,68,70,44,43,36,32,36,43,23,18,24,49,45,49,58,49,53,59,52,83,48,62,31,51,47,62,52,54,47,47,47,47,47,47,47,47,47,47,47,55,47,51,0,55,0,55,0]} 1. d4 {[%emt 0:04:15]} Nf6 {[%emt 0:01:15]} 2. c4 {[%emt 0:00:52]} e6 {[%emt 0:00:06]} 3. Nf3 {[%emt 0:00:48]} b6 {[%emt 0:00:07]} 4. a3 {[%emt 0:00:33]} Bb7 {[%emt 0:00:10]} 5. Bf4 {[%emt 0:00:34]} c5 {[%emt 0:00:27]} 6. Nc3 {[%emt 0:00:45]} cxd4 {[%emt 0:00:54]} 7. Qxd4 {[%emt 0:00:51]} Nc6 {[%emt 0:02:07]} 8. Qd3 {[%emt 0:01:48] The position is equal.} Nh5 {[%emt 0:01:47]} 9. Bg5 {[%emt 0:02:41]} Be7 {[%emt 0:00:23]} 10. Bxe7 {[%emt 0:00:24]} Qxe7 {[%emt 0:00:06]} 11. Nb5 {[%emt 0:00:19] [#] Black must now prevent Nd6+.} O-O {[%emt 0:02:25][%cal Od7d5]} 12. Nd6 $36 {[%emt 0:00:58][%mdl 2048] White is more active.} Nd8 {[%emt 0:00:18]} 13. Nxb7 {[%emt 0:03:16]} Nxb7 {[%emt 0:00:07]} 14. g3 {[%emt 0:00:21]} Rac8 {[%emt 0:10:38]} 15. Bg2 {[%emt 0:03:19]} Nf6 {[%emt 0:02:03]} 16. O-O {[%emt 0:00:50]} d5 {[%emt 0:01:42]} 17. cxd5 {[%emt 0:06:16]} Rfd8 {[%emt 0:03:05]} 18. Rac1 {[%emt 0:03:00]} exd5 {[%emt 0:15:39]} 19. Nd4 {[%emt 0:08:45]} Nc5 {[%emt 0:00:26]} 20. Qc2 {[%emt 0:07:17] Strongly threatening b4.} Qd7 {[%emt 0:02:46]} 21. Rfd1 {[%emt 0:04:52]} Re8 {[%emt 0:07:56]} 22. Qf5 {[%emt 0:05:25]} Ne6 {[%emt 0:03:09]} (22... Qxf5 23. Nxf5 Rcd8 (23... Rxe2 $2 24. b4 $18) 24. Nd4 $16) 23. Rxc8 {[%emt 0:03:57]} Rxc8 {[%emt 0:02:34]} 24. Qd3 {[%emt 0:06:12]} Nxd4 {[%emt 0:03:57]} 25. Qxd4 {[%emt 0:00:17][%cal Oe2e4]} Qb5 {[%emt 0:02:29]} 26. Bf3 {[%emt 0:04:46]} h6 {[%emt 0:02:38]} 27. Kg2 {[%emt 0:01:54]} ({Reject} 27. Bxd5 Nxd5 28. Qxd5 Qxe2 $11) 27... Rc2 {[%emt 0:01:21]} 28. b4 {[%emt 0:04:19][%cal Od4e5]} (28. Bxd5 Nxd5 29. Qxd5 Qxe2 30. Qd8+ Kh7 31. Qd3+ Qxd3 32. Rxd3 Rxb2) 28... Qe8 {[%emt 0:06:53]} 29. Qd3 {[%emt 0:04:33]} (29. Bxd5 Nxd5 30. Qxd5 Qxe2 31. Qd8+ Kh7 $11) 29... Rc8 {[%emt 0:03:02][%cal Bc2c8,Bc8d8,Bd8d7][%mdl 32]} 30. Qb3 {[%emt 0:01:00]} Rd8 {[%emt 0:03:25]} 31. Rd4 {[%emt 0:00:47]} (31. Bxd5 $2 {loses.} Rxd5 (31... Qxe2 $2 32. Bxf7+ Kf8 33. Rxd8+ $18) (31... Nxd5 $2 32. Qc2 $19) 32. Rxd5 Qe4+ 33. f3 Qxd5 $19) 31... Qe5 {[%emt 0:01:47]} 32. Qd1 {[%emt 0:02:14][%cal Oe2e4]} Rd7 {[%emt 0:00:11]} 33. e3 {[%emt 0:01:31]} g6 {[%emt 0:00:32]} 34. Kg1 {[%emt 0:00:23]} h5 {[%emt 0:02:43]} 35. h3 {[%emt 0:02:01]} Qf5 {[%emt 0:02:51]} 36. Kg2 {[%emt 0:00:34]} Kg7 {[%emt 0:02:01]} 37. h4 {[%emt 0:02:16]} Qe5 {[%emt 0:01:31]} 38. Kg1 {[%emt 0:02:57]} Qf5 {[%emt 0:00:33]} 39. Kg2 {[%emt 0:00:13]} Qe5 $1 {[%emt 0:00:07]} 40. Kg1 {[%emt 0:00:48]} Qf5 $1 {[%emt 0:00:19]} 41. Kg2 {[%emt 0:31:01] Weighted Error Value: White=0.09 (flawless) /Black=0.04 (flawless) .  Mistake:       	White=1     	---        Inaccurate:     	White=3     	Black=2      OK:         	White=10    	Black=16     Best:        	---       	Black=1      Strong:       	---       	Black=2} ({Better is} 41. a4 $14) 1/2-1/2

[Event "Sardinia World Festival-A 2024"]
[Site "Orosei"]
[Date "2024.04.30"]
[Round "5.6"]
[White "Mikhalevski, Victor"]
[Black "Moroni, Luca Jr"]
[Result "0-1"]
[ECO "E08"]
[WhiteElo "2506"]
[BlackElo "2580"]
[Annotator "TA"]
[PlyCount "68"]
[EventDate "2024.04.26"]
[EventType "swiss"]
[EventCountry "ITA"]
[SourceTitle "playchess.com"]
[Source "ChessBase"]
[SourceQuality "1"]
[TimeControl "40/5400+30:1800+30"]

{[%evp 12,68,18,20,19,-16,-18,0,-1,-21,-5,-1,-3,-23,-12,-14,-7,-67,-61,-75,-32,-60,-70,-79,-57,-64,18,0,0,0,6,0,46,0,0,0,82,65,69,47,68,33,47,33,31,0,6,0,0,0,0,-128,-119,-1518,-1425,-5035,-4790,-29985,-29986]} 1. Nf3 {[%emt 0:00:04]} Nf6 {[%emt 0:03:48]} 2. g3 {[%emt 0:00:13]} d5 {[%emt 0:00:10]} 3. Bg2 {[%emt 0:00:06]} e6 {[%emt 0:00:20]} 4. O-O {[%emt 0:02:21]} Be7 {[%emt 0:00:56]} 5. d4 {[%emt 0:01:29]} O-O {[%emt 0:00:45]} 6. c4 {[%emt 0:00:09]} Nbd7 {[%emt 0:00:06][%cal Bb8d7,Bd7b6,Bb6c4][%mdl 32]} 7. Qc2 {[%emt 0:02:10]} a5 {[%emt 0:04:05]} 8. cxd5 {[%emt 0:06:24]} exd5 {[%emt 0:01:35]} 9. Nc3 {[%emt 0:00:10]} c6 {[%emt 0:02:04] The position is equal.} 10. Bf4 {[%emt 0:04:56]} Nb6 {[%emt 0:07:08]} 11. Rad1 {[%emt 0:13:00]} h6 {[%emt 0:04:54]} 12. h3 {[%emt 0:07:03]} Be6 {[%emt 0:03:17]} 13. g4 {[%emt 0:01:46]} Nfd7 {[%emt 0:14:00]} 14. e3 {[%emt 0:06:02]} (14. Ne5 $11) 14... f5 $1 $15 {[%emt 0:03:29]} 15. Nh2 {[%emt 0:01:56]} Nc4 {[%emt 0:07:13]} 16. Ne2 {[%emt 0:04:08]} Qe8 {[%emt 0:05:58]} 17. b3 {[%emt 0:08:50]} Nd6 {[%emt 0:04:56]} 18. Be5 {[%emt 0:38:43]} g5 {[%emt 0:03:03] Prevents Nf4} (18... fxg4 $15 19. hxg4 a4) 19. f4 {[%emt 0:00:00]} Ne4 {[%emt 0:04:23]} 20. Bxe4 {[%emt 0:00:00]} fxe4 {[%emt 0:03:23]} 21. Rf2 {[%emt 0:00:00]} Rc8 {[%emt 0:05:34]} (21... Ba3 $11) 22. Qb2 {[%emt 0:00:00]} (22. Nf1 $14) 22... Kh7 $11 {[%emt 0:06:01]} 23. Nf1 {[%emt 0:00:00]} c5 {[%emt 0:01:09]} (23... Nxe5 $11 {keeps the balance.} 24. dxe5 gxf4 25. exf4 Bc5) 24. Nfg3 $16 {[%emt 0:00:00]} gxf4 {[%emt 0:01:22]} 25. Bxf4 {[%emt 0:00:00]} (25. Nxf4 {keeps more tension.} Bh4 26. Kg2 Qe7 27. Rdf1) 25... Bh4 {[%emt 0:01:48]} 26. Rdf1 {[%emt 0:00:00]} Qg6 {[%emt 0:02:52]} 27. Kh2 {[%emt 0:01:58]} cxd4 {[%emt 0:04:09]} 28. Nxd4 {[%emt 0:01:53]} Nc5 $1 {[%emt 0:00:01]} 29. Nxe6 {[%emt 0:00:48]} Nxe6 {[%emt 0:03:53]} 30. Be5 {[%emt 0:00:42] Prevents d4.} Rxf2+ {[%emt 0:00:45]} 31. Rxf2 {[%emt 0:00:29]} (31. Qxf2 $11 {was the only way to keep the balance.} Ng5 32. Qf5 Nf3+ 33. Rxf3 Rc2+ 34. Kh1 exf3 35. Qd7+ Kg8 36. Nf5 Rc1+ (36... Bg5 37. Qxb7 Rc1+ 38. Kh2 $11) 37. Kh2 Rc2+ 38. Kh1 Rc1+ (38... Bg5 39. Qxb7 f2 40. Kg2 $16) 39. Kh2 Rc2+ 40. Kh1) 31... Ng5 $17 {[%emt 0:00:18] ...Nf3+ is the strong threat.} 32. Bf6 $2 {[%emt 0:00:30][%mdl 8192] [#]} (32. Rf1 $17) 32... Nf3+ $1 $19 {[%emt 0:00:15]} 33. Rxf3 {[%emt 0:00:02]} exf3 {[%emt 0:00:05]} 34. Bc3 {[%emt 0:00:53]} Qd3 {[%emt 0:01:00][%csl LRc3,LRe3] Weighted Error Value: White=0.65/Black=0.18 (very precise) .  Loses game:     	White=1     	---        Mistake:       	White=3     	Black=3      Inaccurate:     	White=4     	Black=1      OK:         	White=5     	Black=7      Best:        	---       	Black=1      Strong:       	---       	Black=3} 0-1

[Event "Sardinia World Festival-A 2024"]
[Site "Orosei"]
[Date "2024.04.30"]
[Round "5.7"]
[White "Gurel, Ediz"]
[Black "Bharath Subramaniyam H"]
[Result "1/2-1/2"]
[ECO "C60"]
[WhiteElo "2578"]
[BlackElo "2544"]
[Annotator "TA"]
[PlyCount "57"]
[EventDate "2024.04.26"]
[EventType "swiss"]
[EventCountry "ITA"]
[SourceTitle "playchess.com"]
[Source "ChessBase"]
[SourceQuality "1"]
[TimeControl "40/5400+30:1800+30"]

{[%evp 9,57,15,51,37,25,37,26,27,30,32,33,25,66,11,10,4,0,16,5,-18,-15,-12,-5,-12,0,0,0,0,0,-13,0,0,0,0,0,0,26,18,27,17,8,8,8,8,8,8,8,6,8,8]} 1. e4 {[%emt 0:00:16]} e5 {[%emt 0:01:13]} 2. Nf3 {[%emt 0:00:10]} Nc6 {[%emt 0:00:23]} 3. Bb5 {[%emt 0:00:09]} Nge7 {[%emt 0:01:12][%cal Bg8e7,Be7g6,Bg6f4][%mdl 32]} 4. Nc3 {[%emt 0:00:25]} Ng6 {[%emt 0:00:11]} 5. h4 {[%emt 0:00:13][%cal Bh2h4,Bh4h5][%mdl 32]} Nd4 {[%emt 0:01:20]} 6. h5 {[%emt 0:00:13]} Nf4 {[%emt 0:01:07]} 7. Nxd4 {[%emt 0:00:06]} exd4 {[%emt 0:01:08]} 8. Qf3 {[%emt 0:00:17] White has an edge.} Bd6 {[%emt 0:06:53]} 9. Ne2 {[%emt 0:00:17]} (9. d3 {is more complex.} dxc3 10. Bxf4 cxb2 11. Rb1) 9... Nxe2 {[%emt 0:00:45]} 10. Bxe2 {[%emt 0:00:10]} h6 {[%emt 0:00:45] Black is weak on the light squares} 11. Qg4 {[%emt 0:09:43]} (11. d3 $14) 11... O-O $11 {[%emt 0:07:53]} 12. O-O {[%emt 0:02:13]} Be7 {[%emt 0:06:59]} 13. Qg3 {[%emt 0:04:22]} d5 {[%emt 0:09:53]} 14. exd5 {[%emt 0:08:54]} Qxd5 {[%emt 0:17:17]} 15. d3 {[%emt 0:00:40]} Bd6 {[%emt 0:05:16]} 16. Bf4 {[%emt 0:03:28]} Bxf4 {[%emt 0:01:07]} 17. Qxf4 {[%emt 0:00:02]} Qc5 {[%emt 0:02:58]} 18. Bf3 {[%emt 0:02:51]} Be6 {[%emt 0:01:20]} 19. Rac1 {[%emt 0:05:13]} a5 {[%emt 0:04:32][%cal Oc7c6]} 20. a4 {[%emt 0:04:16]} ({Don't play} 20. Bxb7 Rab8 21. Bf3 Rxb2 $15) 20... c6 {[%emt 0:01:58]} 21. Rfe1 {[%emt 0:00:42]} Rfe8 {[%emt 0:12:24]} 22. Re2 {[%emt 0:06:55]} Bd5 {[%emt 0:09:20]} 23. Rce1 {[%emt 0:01:33]} Rxe2 {[%emt 0:00:13]} 24. Rxe2 {[%emt 0:00:02]} Bxf3 {[%emt 0:00:42] The position is equal.} 25. Qxf3 {[%emt 0:00:05] KQR-KQR} Qg5 {[%emt 0:00:57]} 26. b3 {[%emt 0:00:52]} Rd8 {[%emt 0:01:56]} 27. g3 {[%emt 0:00:23]} Qd5 {[%emt 0:02:36]} 28. Qg4 {[%emt 0:02:49]} b5 {[%emt 0:00:15]} 29. Re7 {[%emt 0:08:45] Weighted Error Value: White=0.07 (flawless) /Black=0.05 (flawless) .  Mistake:       	White=1     	---        Inaccurate:     	---       	Black=2      OK:         	White=13    	Black=13} 1/2-1/2

[Event "Sardinia World Festival-A 2024"]
[Site "Orosei"]
[Date "2024.04.30"]
[Round "5.8"]
[White "Shevchenko, Kirill"]
[Black "Kilic, Eray"]
[Result "1-0"]
[ECO "A14"]
[WhiteElo "2675"]
[BlackElo "2429"]
[Annotator "RC"]
[PlyCount "103"]
[EventDate "2024.04.26"]
[EventType "swiss"]
[EventCountry "ITA"]
[SourceTitle "playchess.com"]
[Source "ChessBase"]
[SourceQuality "1"]
[TimeControl "40/5400+30:1800+30"]

1. Nf3 {[%emt 0:00:11]} d5 {[%emt 0:00:21]} 2. g3 {[%emt 0:00:07]} Nf6 {[%emt 0:00:28]} 3. Bg2 {[%emt 0:00:10]} e6 {[%emt 0:00:10]} 4. O-O {[%emt 0:00:24]} Be7 {[%emt 0:00:43]} 5. c4 {[%emt 0:00:30]} O-O {[%emt 0:00:06]} 6. b3 {[%emt 0:00:02]} c5 {[%emt 0:01:40]} 7. cxd5 {[%emt 0:02:38]} Nxd5 {[%emt 0:01:35]} 8. Bb2 {[%emt 0:00:38]} Nc6 {[%emt 0:00:46]} 9. d4 {[%emt 0:00:49]} Bf6 {[%emt 0:04:01]} 10. e4 {[%emt 0:05:45]} Ndb4 {[%emt 0:02:06]} 11. a3 {[%emt 0:09:01]} Na6 {[%emt 0:00:11]} 12. e5 {[%emt 0:00:07]} Be7 {[%emt 0:00:05]} 13. Nbd2 {[%emt 0:07:54]} Nxd4 {[%emt 0:09:58]} 14. Nxd4 {[%emt 0:09:48]} cxd4 {[%emt 0:00:06]} 15. Nc4 {[%emt 0:02:06]} d3 {[%emt 0:05:58]} 16. Rc1 {[%emt 0:07:13]} Rb8 {[%emt 0:07:02]} 17. b4 {[%emt 0:05:16]} Nc7 {[%emt 0:18:48]} 18. Rc3 {[%emt 0:04:06]} Nd5 {[%emt 0:01:04]} 19. Rxd3 {[%emt 0:00:11]} b6 {[%emt 0:00:18]} 20. Qb3 {[%emt 0:08:46]} Qe8 {[%emt 0:04:47]} 21. Re1 {[%emt 0:02:36]} Ba6 {[%emt 0:06:31]} 22. Rd4 {[%emt 0:01:02]} Bxc4 {[%emt 0:02:30]} 23. Qxc4 {[%emt 0:03:08]} b5 {[%emt 0:00:23]} 24. Qd3 {[%emt 0:08:31]} Nb6 {[%emt 0:00:16]} 25. Be4 {[%emt 0:00:13]} g6 {[%emt 0:02:28]} 26. Bc1 {[%emt 0:00:32]} Kg7 {[%emt 0:06:14]} 27. Qf3 {[%emt 0:02:27]} Rc8 {[%emt 0:02:11]} 28. h4 {[%emt 0:02:06]} f5 {[%emt 0:02:19]} 29. exf6+ {[%emt 0:04:28]} Bxf6 {[%emt 0:00:06]} 30. Rd3 {[%emt 0:00:15]} Nc4 {[%emt 0:01:52]} 31. Qe2 {[%emt 0:02:27]} Rc7 {[%emt 0:03:02]} 32. Bg2 {[%emt 0:04:22]} Rcf7 {[%emt 0:01:29]} 33. h5 {[%emt 0:02:01]} Bd8 {[%emt 0:02:07]} 34. h6+ {[%emt 0:02:01]} Kh8 {[%emt 0:00:02]} 35. Bf4 {[%emt 0:02:27]} g5 {[%emt 0:02:23]} 36. Be5+ {[%emt 0:00:46]} Nxe5 {[%emt 0:01:34]} 37. Qxe5+ {[%emt 0:00:05]} Bf6 {[%emt 0:00:04]} 38. Qd6 {[%emt 0:02:01]} Qd8 {[%emt 0:02:28]} 39. Qxe6 {[%emt 0:01:04]} Qxd3 {[%emt 0:00:32]} 40. Qxf7 {[%emt 0:00:07]} Qd8 {[%emt 0:00:05]} 41. Qb7 {[%emt 0:07:22]} Qd2 {[%emt 0:04:20]} 42. Re3 {[%emt 0:08:12]} g4 {[%emt 0:09:48]} 43. Qxb5 {[%emt 0:05:24]} Bd4 {[%emt 0:05:09]} 44. Qf5 {[%emt 0:02:19]} Qc1+ {[%emt 0:00:04]} 45. Kh2 {[%emt 0:01:26]} Qc8 {[%emt 0:00:10]} 46. Qxc8 {[%emt 0:01:42]} Rxc8 {[%emt 0:00:04]} 47. Re7 {[%emt 0:00:17]} Bxf2 {[%emt 0:00:18]} 48. Be4 {[%emt 0:00:09]} Kg8 {[%emt 0:00:04]} 49. Rg7+ {[%emt 0:03:30]} Kf8 {[%emt 0:00:07]} 50. Rxg4 {[%emt 0:00:08]} Be3 {[%emt 0:00:09]} 51. Rg7 {[%emt 0:00:45]} Bxh6 {[%emt 0:00:15]} 52. Rxa7 {[%emt 0:06:55]} 1-0

[Event "Sardinia World Festival-A 2024"]
[Site "Orosei"]
[Date "2024.04.30"]
[Round "5.9"]
[White "Ben Ari, Yannay"]
[Black "Van Foreest, Jorden"]
[Result "0-1"]
[ECO "E90"]
[WhiteElo "2436"]
[BlackElo "2668"]
[Annotator "TA"]
[PlyCount "70"]
[EventDate "2024.04.26"]
[EventType "swiss"]
[EventCountry "ITA"]
[SourceTitle "playchess.com"]
[Source "ChessBase"]
[SourceQuality "1"]
[TimeControl "40/5400+30:1800+30"]

{[%evp 14,70,41,39,22,0,13,3,6,0,56,0,37,35,39,-22,-26,-27,-31,-68,-62,-69,-69,-70,-83,-126,-129,-119,-109,-135,-128,-133,-117,-152,-122,-212,-212,-270,-259,-433,-456,-435,-444,-450,-444,-451,-451,-446,-451,-474,-239,-462,-470,-442,-382,-544,-414,-414,-414]} 1. Nf3 {[%emt 0:00:59]} Nf6 {[%emt 0:00:31]} 2. c4 {[%emt 0:00:49]} g6 {[%emt 0:00:09]} 3. Nc3 {[%emt 0:01:15]} Bg7 {[%emt 0:00:12]} 4. e4 {[%emt 0:01:24]} d6 {[%emt 0:00:11]} 5. d4 {[%emt 0:00:16]} O-O {[%emt 0:00:10]} 6. Be3 {[%emt 0:00:22][%cal Bc1e3,Be3g5,Bg5h4][%mdl 32]} Ng4 {[%emt 0:02:12]} 7. Bg5 {[%emt 0:00:08]} h6 {[%emt 0:00:07]} 8. Bh4 {[%emt 0:00:06]} Nf6 {[%emt 0:00:23]} 9. Be2 {[%emt 0:08:44]} g5 {[%emt 0:00:14]} 10. Bg3 {[%emt 0:00:26]} Nh5 {[%emt 0:00:07] The position is equal.} 11. Qd2 {[%emt 0:13:18]} c5 {[%emt 0:01:00]} 12. d5 {[%emt 0:07:51]} (12. O-O-O $1 $14) 12... Nxg3 {[%emt 0:00:14]} 13. hxg3 {[%emt 0:00:25]} e6 {[%emt 0:00:04]} 14. Bd1 {[%emt 0:12:53]} ({White should play} 14. Nh2 $14 exd5 15. cxd5) 14... exd5 $11 {[%emt 0:01:54]} 15. exd5 {[%emt 0:03:44]} Re8+ {[%emt 0:00:41]} 16. Kf1 {[%emt 0:00:10]} Nd7 {[%emt 0:07:44]} 17. Bc2 {[%emt 0:08:16]} Nf6 {[%emt 0:01:02]} 18. Nh2 {[%emt 0:15:14]} a6 {[%emt 0:01:23][%cal Ob7b5] White is now going downhill.} 19. Bd3 {[%emt 0:01:27]} Bd7 {[%emt 0:00:59]} 20. Kg1 {[%emt 0:06:15]} Qa5 {[%emt 0:07:27]} 21. Rc1 {[%emt 0:04:40]} b5 {[%emt 0:00:34]} 22. b3 {[%emt 0:00:09]} Qb4 {[%emt 0:06:01]} 23. Qc2 {[%emt 0:04:10]} Re7 {[%emt 0:02:03] Black is more active.} 24. a3 {[%emt 0:06:33]} Qa5 {[%emt 0:02:20]} 25. cxb5 {[%emt 0:01:50]} axb5 {[%emt 0:00:14]} (25... Qxa3 26. bxa6 Qb4 27. Ra1 $17) 26. b4 $2 {[%emt 0:01:20]} (26. a4 c4 (26... bxa4 $2 27. bxa4 Bxa4 28. Qxa4 $19) 27. bxc4 bxa4 28. Bf1) 26... cxb4 $19 {[%emt 0:00:52]} (26... Qxa3 27. bxc5 Qxc5 28. Qd2 $19) 27. axb4 {[%emt 0:00:02]} Qxb4 {[%emt 0:00:08]} 28. Rb1 {[%emt 0:00:19]} Qc5 {[%emt 0:00:40] [#] ...Rc8 is the strong threat.} 29. Nxb5 {[%emt 0:01:22]} Qxc2 {[%emt 0:01:27]} ({Less strong is} 29... Nxd5 30. Nf3 $19) 30. Bxc2 {[%emt 0:00:01]} Bxb5 {[%emt 0:12:22]} (30... Nxd5 $2 31. Bb3 $19) 31. Rxb5 {[%emt 0:00:02]} Re1+ {[%emt 0:00:07]} 32. Nf1 {[%emt 0:00:07] White is weak on the dark squares} Ng4 {[%emt 0:00:02]} 33. Rb4 {[%emt 0:01:04] Prevents Bd4} Ra2 {[%emt 0:03:05]} 34. Bb1 {[%emt 0:01:18]} (34. Rb8+ {was called for.} Bf8 35. Rb1 Rxf1+ 36. Rxf1 Rxc2 37. f3) 34... Rxf2 {[%emt 0:02:13]} 35. Bd3 {[%emt 0:00:01]} Rd2 {[%emt 0:00:56] Weighted Error Value: White=0.38/Black=0.13 (very precise) .  Mistake:       	White=5     	---        Inaccurate:     	White=3     	Black=1      OK:         	White=6     	Black=13     Best:        	---       	Black=4} 0-1